[Event "29th Czech Open-Rapid 2018"]
[Site "Pardubice"]
[Date "2018.07.19"]
[Round "4"]
[White "Dolezal, Radoslav"]
[Black "Pein, Jonathan"]
[Result "1/2-1/2"]
[ECO "B01"]
[WhiteElo "2339"]
[BlackElo "2123"]
[Annotator "NA"]
[PlyCount "73"]
[EventDate "2018.07.18"]
[EventType "swiss"]
[EventCountry "CZE"]
[SourceTitle "playchess.com"]
[Source "ChessBase"]
[SourceQuality "1"]
[TimeControl "900+10"]

1. e4 {[%emt 0:00:00]} d5 {[%emt 0:01:09]} 2. exd5 {[%emt 0:00:00]} Qxd5 {[%emt 0:00:01]} 3. Nc3 {[%emt 0:00:00]} Qd6 {[%emt 0:00:00]} 4. Bc4 {[%emt 0:00:02]} Nf6 {[%emt 0:00:09]} 5. Nge2 {[%emt 0:00:15]} g6 {[%emt 0:00:04]} 6. d4 {[%emt 0:00:02]} Bg7 {[%emt 0:00:21]} 7. Bf4 {[%emt 0:00:13]} Qd8 {[%emt 0:01:15]} 8. Qd2 {[%emt 0:00:14]} O-O {[%emt 0:00:08]} 9. Bh6 {[%emt 0:01:18]} a6 {[%emt 0:00:01]} 10. Bxg7 {[%emt 0:00:39]} Kxg7 {[%emt 0:00:01]} 11. a4 {[%emt 0:00:02]} Nc6 {[%emt 0:00:01]} 12. O-O {[%emt 0:01:21]} Bf5 {[%emt 0:00:55]} 13. Rfd1 {[%emt 0:00:08]} Nb4 {[%emt 0:00:39]} 14. Bb3 {[%emt 0:00:05]} c6 {[%emt 0:00:12]} 15. Ng3 {[%emt 0:00:11]} Qd7 {[%emt 0:01:05]} 16. a5 {[%emt 0:00:25]} Rad8 {[%emt 0:00:34]} 17. Na4 {[%emt 0:00:25]} Nbd5 {[%emt 0:00:41]} 18. c4 {[%emt 0:00:16]} Nc7 {[%emt 0:00:45]} 19. Nb6 {[%emt 0:00:52]} Qe6 {[%emt 0:00:33]} 20. Re1 {[%emt 0:04:34]} Qd6 {[%emt 0:00:04]} 21. Nxf5+ {[%emt 0:03:00]} gxf5 {[%emt 0:00:01]} 22. Qg5+ {[%emt 0:00:01]} Kh8 {[%emt 0:00:01]} 23. Qxf5 {[%emt 0:00:02]} Ne6 {[%emt 0:01:11]} 24. d5 {[%emt 0:00:34]} Nd4 {[%emt 0:00:32]} 25. Qd3 {[%emt 0:00:02]} c5 {[%emt 0:00:44]} 26. Bd1 {[%emt 0:00:10]} Rg8 {[%emt 0:01:01]} 27. b4 {[%emt 0:00:53]} Qf4 {[%emt 0:01:31]} 28. g3 {[%emt 0:01:22]} e5 {[%emt 0:01:08]} 29. bxc5 {[%emt 0:00:33]} Qg5 {[%emt 0:00:29]} 30. Qe3 {[%emt 0:00:43]} Qg7 {[%emt 0:00:02]} 31. Kf1 {[%emt 0:00:24]} Rde8 {[%emt 0:00:24]} 32. Ra2 {[%emt 0:00:23]} Ng4 {[%emt 0:00:01]} 33. Bxg4 {[%emt 0:00:15]} Qxg4 {[%emt 0:00:01]} 34. Qe4 {[%emt 0:00:04]} Qh3+ {[%emt 0:00:21]} 35. Qg2 Qf5 36. Qe4 {[%emt 0:00:45]} Qh3+ {[%emt 0:00:02]} 37. Qg2 1/2-1/2

[Event "29th Czech Open-Rapid 2018"]
[Site "Pardubice"]
[Date "2018.07.19"]
[Round "4"]
[White "Frolov, Artur"]
[Black "Roenko, Artur"]
[Result "1-0"]
[ECO "D63"]
[WhiteElo "2327"]
[BlackElo "2119"]
[Annotator "NA"]
[PlyCount "121"]
[EventDate "2018.07.18"]
[EventType "swiss"]
[EventCountry "CZE"]
[SourceTitle "playchess.com"]
[Source "ChessBase"]
[SourceQuality "1"]
[TimeControl "900+10"]

1. d4 {[%emt 0:00:00]} d5 {[%emt 0:00:00]} 2. Nf3 {[%emt 0:00:00]} e6 {[%emt 0:00:00]} 3. Bg5 {[%emt 0:00:22]} Nf6 {[%emt 0:00:20]} 4. c4 {[%emt 0:00:21]} c6 {[%emt 0:00:25]} 5. Nc3 {[%emt 0:00:06]} Be7 {[%emt 0:00:23]} 6. e3 {[%emt 0:00:20]} O-O {[%emt 0:00:06]} 7. Rc1 {[%emt 0:00:23]} Nbd7 {[%emt 0:00:18]} 8. cxd5 {[%emt 0:00:24]} exd5 {[%emt 0:00:05]} 9. Bd3 {[%emt 0:00:21]} Re8 {[%emt 0:00:04]} 10. O-O {[%emt 0:00:09]} Ne4 {[%emt 0:01:00]} 11. Bxe4 {[%emt 0:01:54]} Bxg5 {[%emt 0:00:10]} 12. Nxg5 {[%emt 0:00:18]} Qxg5 {[%emt 0:00:08]} 13. Bf3 {[%emt 0:00:03]} Nf6 {[%emt 0:00:33]} 14. b4 {[%emt 0:00:53]} a6 {[%emt 0:00:05]} 15. a4 {[%emt 0:01:00]} Ne4 {[%emt 0:00:21]} 16. Re1 {[%emt 0:01:02]} Qh4 {[%emt 0:03:40]} 17. g3 {[%emt 0:00:22]} Qf6 {[%emt 0:00:07]} 18. Nxe4 {[%emt 0:00:36]} dxe4 {[%emt 0:00:02]} 19. Be2 {[%emt 0:00:22]} Be6 {[%emt 0:02:58]} 20. Rc5 {[%emt 0:01:04]} Bd5 {[%emt 0:00:11]} 21. Qb1 {[%emt 0:01:14]} Qd6 {[%emt 0:00:42]} 22. Rec1 {[%emt 0:00:12]} g6 {[%emt 0:01:55]} 23. b5 {[%emt 0:00:50]} axb5 {[%emt 0:00:12]} 24. axb5 {[%emt 0:00:01]} Ra3 {[%emt 0:01:58]} 25. Bc4 {[%emt 0:01:27]} Bxc4 {[%emt 0:01:53]} 26. R5xc4 {[%emt 0:00:01]} cxb5 {[%emt 0:01:06]} 27. Qxb5 {[%emt 0:00:02]} Re7 {[%emt 0:00:22]} 28. Rc8+ {[%emt 0:00:10]} Kg7 {[%emt 0:00:02]} 29. Qb2 {[%emt 0:00:30]} Ra6 {[%emt 0:00:24]} 30. R1c5 {[%emt 0:00:26]} Qf6 {[%emt 0:00:15]} 31. Rb5 {[%emt 0:02:12]} Rd7 {[%emt 0:00:11]} 32. Rb8 {[%emt 0:00:23]} Ra7 {[%emt 0:00:02]} 33. R8xb7 {[%emt 0:00:05]} Rdxb7 {[%emt 0:00:11]} 34. Rxb7 {[%emt 0:00:01]} Rxb7 {[%emt 0:00:12]} 35. Qxb7 {[%emt 0:00:02]} Qf3 {[%emt 0:00:01]} 36. Qb1 {[%emt 0:00:25]} h5 {[%emt 0:00:16]} 37. h4 {[%emt 0:00:02]} Kf8 {[%emt 0:00:15]} 38. Qb8+ {[%emt 0:00:08]} Ke7 {[%emt 0:00:10]} 39. Qe5+ {[%emt 0:00:05]} Kd7 {[%emt 0:00:13]} 40. Qf4 {[%emt 0:00:11]} Qd1+ {[%emt 0:00:11]} 41. Kg2 {[%emt 0:00:01]} f5 {[%emt 0:00:03]} 42. Qe5 {[%emt 0:00:59]} Qf3+ {[%emt 0:00:09]} 43. Kg1 {[%emt 0:00:02]} Qd1+ {[%emt 0:00:02]} 44. Kh2 {[%emt 0:00:01]} Qf3 {[%emt 0:00:08]} 45. Qb5+ {[%emt 0:00:20]} Ke7 {[%emt 0:00:10]} 46. Qc5+ {[%emt 0:00:17]} Kd7 {[%emt 0:00:04]} 47. Qc2 {[%emt 0:00:04]} Qg4 {[%emt 0:00:23]} 48. d5 {[%emt 0:00:57]} g5 {[%emt 0:00:14]} 49. Qc6+ {[%emt 0:00:11]} Ke7 {[%emt 0:00:11]} 50. Qe6+ {[%emt 0:00:02]} Kf8 {[%emt 0:00:12]} 51. Qf6+ {[%emt 0:00:08]} Ke8 {[%emt 0:00:05]} 52. Qxg5 {[%emt 0:00:23]} Qf3 {[%emt 0:00:12]} 53. Qf4 {[%emt 0:00:02]} Qxf4 {[%emt 0:00:01]} 54. gxf4 {[%emt 0:00:12]} Kd7 {[%emt 0:00:02]} 55. f3 {[%emt 0:00:04]} exf3 {[%emt 0:00:06]} 56. Kg3 {[%emt 0:00:04]} Kd6 {[%emt 0:00:08]} 57. Kxf3 {[%emt 0:00:04]} Kxd5 {[%emt 0:00:03]} 58. e4+ {[%emt 0:00:07]} fxe4+ {[%emt 0:00:05]} 59. Ke3 {[%emt 0:00:01]} Kd6 {[%emt 0:00:22]} 60. Kxe4 {[%emt 0:00:02]} Ke6 {[%emt 0:00:00]} 61. f5+ {[%emt 0:00:03] Kd5+} 1-0

[Event "29th Czech Open-Rapid 2018"]
[Site "Pardubice"]
[Date "2018.07.19"]
[Round "4"]
[White "Sarkar, Justin"]
[Black "Rakshitta, Ravi"]
[Result "1-0"]
[ECO "C47"]
[WhiteElo "2314"]
[BlackElo "1565"]
[Annotator "NA"]
[PlyCount "69"]
[EventDate "2018.07.18"]
[EventType "swiss"]
[EventCountry "CZE"]
[SourceTitle "playchess.com"]
[Source "ChessBase"]
[SourceQuality "1"]
[TimeControl "900+10"]

1. e4 {[%emt 0:00:12]} e5 {[%emt 0:00:38]} 2. Nf3 {[%emt 0:00:07]} Nc6 {[%emt 0:00:01]} 3. Nc3 {[%emt 0:00:08]} Nf6 {[%emt 0:00:04]} 4. a3 {[%emt 0:00:11]} Be7 {[%emt 0:00:33]} 5. d4 {[%emt 0:00:12]} exd4 {[%emt 0:00:28]} 6. Nxd4 {[%emt 0:00:05]} O-O {[%emt 0:00:32]} 7. Nxc6 {[%emt 0:00:41]} dxc6 {[%emt 0:00:08]} 8. Qxd8 {[%emt 0:00:03]} Rxd8 {[%emt 0:00:01]} 9. Bf4 {[%emt 0:00:36]} Bd6 {[%emt 0:02:26]} 10. Bxd6 {[%emt 0:00:29]} cxd6 {[%emt 0:00:18]} 11. O-O-O {[%emt 0:02:50]} Be6 {[%emt 0:00:01]} 12. Be2 {[%emt 0:03:06]} a5 {[%emt 0:01:17]} 13. Rd4 {[%emt 0:02:50]} Kf8 {[%emt 0:01:05]} 14. Rhd1 {[%emt 0:00:03]} Ke7 {[%emt 0:00:04]} 15. f4 {[%emt 0:00:36]} b5 {[%emt 0:03:39]} 16. Bf3 {[%emt 0:00:44]} Ne8 {[%emt 0:03:07]} 17. f5 {[%emt 0:00:46]} c5 {[%emt 0:01:00]} 18. R4d3 {[%emt 0:02:04]} b4 {[%emt 0:00:12]} 19. fxe6 {[%emt 0:00:15]} bxc3 {[%emt 0:00:02]} 20. Rxc3 {[%emt 0:00:04]} Kxe6 {[%emt 0:00:57]} 21. e5 {[%emt 0:00:03]} Rab8 {[%emt 0:01:16]} 22. exd6 {[%emt 0:00:10]} Nxd6 {[%emt 0:00:14]} 23. Rxc5 {[%emt 0:00:06]} Rdc8 {[%emt 0:00:31]} 24. Rxa5 {[%emt 0:00:42]} Nc4 {[%emt 0:00:12]} 25. Bg4+ {[%emt 0:00:42]} Ke7 {[%emt 0:00:13]} 26. Ra7+ {[%emt 0:00:03]} Kf8 {[%emt 0:00:06]} 27. Bxc8 {[%emt 0:00:05]} Rxc8 {[%emt 0:00:01]} 28. Rdd7 {[%emt 0:00:17]} Ne5 {[%emt 0:00:01]} 29. Re7 {[%emt 0:00:22]} Rc5 {[%emt 0:00:16]} 30. Rec7 {[%emt 0:00:11]} Nd3+ {[%emt 0:00:16]} 31. Kb1 {[%emt 0:00:10]} Rxc7 {[%emt 0:00:02]} 32. Rxc7 {[%emt 0:00:01]} Nf4 {[%emt 0:00:07]} 33. a4 {[%emt 0:00:10]} Nxg2 {[%emt 0:00:02]} 34. a5 {[%emt 0:00:02]} Ke8 {[%emt 0:00:01]} 35. a6 {[%emt 0:00:03]} 1-0

[Event "29th Czech Open-Rapid 2018"]
[Site "Pardubice"]
[Date "2018.07.19"]
[Round "4"]
[White "Gomes, Mary Ann"]
[Black "Petr, Jan"]
[Result "1-0"]
[ECO "C47"]
[WhiteElo "2297"]
[BlackElo "2099"]
[Annotator "NA"]
[PlyCount "91"]
[EventDate "2018.07.18"]
[EventType "swiss"]
[EventCountry "CZE"]
[SourceTitle "playchess.com"]
[Source "ChessBase"]
[SourceQuality "1"]
[TimeControl "900+10"]

1. e4 {[%emt 0:02:12]} e5 {[%emt 0:00:00]} 2. Nf3 {[%emt 0:00:03]} Nf6 {[%emt 0:00:00]} 3. Nc3 {[%emt 0:00:03]} Nc6 {[%emt 0:00:02]} 4. Bc4 {[%emt 0:00:30]} Nxe4 {[%emt 0:01:03]} 5. Nxe4 {[%emt 0:00:03]} d5 {[%emt 0:00:01]} 6. Bb5 {[%emt 0:00:12]} dxe4 {[%emt 0:00:05]} 7. Nxe5 {[%emt 0:00:12]} Bd7 {[%emt 0:00:13]} 8. Bxc6 {[%emt 0:00:17]} Bxc6 {[%emt 0:02:48]} 9. Nxc6 {[%emt 0:00:02]} bxc6 {[%emt 0:00:01]} 10. Qe2 {[%emt 0:00:02]} f5 {[%emt 0:00:20]} 11. d3 {[%emt 0:00:03]} Bb4+ {[%emt 0:04:06]} 12. c3 {[%emt 0:00:04]} Bd6 {[%emt 0:00:02]} 13. dxe4 {[%emt 0:00:10]} O-O {[%emt 0:00:03]} 14. exf5 {[%emt 0:01:54]} Qh4 {[%emt 0:01:21]} 15. Be3 {[%emt 0:00:10]} Rxf5 {[%emt 0:01:44]} 16. O-O-O {[%emt 0:00:38]} Ra5 {[%emt 0:00:38]} 17. Rd4 {[%emt 0:00:05]} Qf6 {[%emt 0:01:22]} 18. Qc4+ {[%emt 0:00:09]} Kh8 {[%emt 0:00:03]} 19. Rhd1 {[%emt 0:01:30]} Rb8 {[%emt 0:01:06]} 20. R1d2 {[%emt 0:01:54]} Rab5 {[%emt 0:00:05]} 21. Qxc6 {[%emt 0:01:27]} R5b6 {[%emt 0:00:15]} 22. Qa4 {[%emt 0:00:22]} Be5 {[%emt 0:00:54]} 23. R4d3 {[%emt 0:00:59]} c5 {[%emt 0:00:52]} 24. Bxc5 {[%emt 0:01:43]} Bxc3 {[%emt 0:00:55]} 25. Bxb6 {[%emt 0:00:29]} Bxd2+ {[%emt 0:00:05]} 26. Rxd2 {[%emt 0:00:01]} Qxb6 {[%emt 0:00:23]} 27. Qd7 {[%emt 0:01:21]} h6 {[%emt 0:00:19]} 28. g3 {[%emt 0:00:20]} a5 {[%emt 0:00:02]} 29. h4 {[%emt 0:00:08]} Qa6 {[%emt 0:00:21]} 30. Qd3 {[%emt 0:00:44]} Qe6 {[%emt 0:00:17]} 31. a3 {[%emt 0:01:00]} Qa2 {[%emt 0:00:01]} 32. h5 {[%emt 0:01:07]} Rc8+ {[%emt 0:00:12]} 33. Rc2 {[%emt 0:00:09]} Re8 {[%emt 0:00:17]} 34. Kd2 {[%emt 0:00:13]} Qb1 {[%emt 0:00:16]} 35. Qd4 {[%emt 0:00:17]} Qe1+ {[%emt 0:00:07]} 36. Kd3 {[%emt 0:00:00]} Qe7 {[%emt 0:00:21]} 37. Rc5 {[%emt 0:00:20]} Qe2+ {[%emt 0:00:12]} 38. Kc3 {[%emt 0:00:01]} Rf8 {[%emt 0:00:14]} 39. f4 {[%emt 0:00:06]} Re8 {[%emt 0:00:03]} 40. Re5 {[%emt 0:00:04]} Rc8+ {[%emt 0:00:01]} 41. Kb3 {[%emt 0:00:15]} Rb8+ {[%emt 0:00:03]} 42. Ka2 {[%emt 0:00:02]} Qf3 {[%emt 0:00:10]} 43. Re6 {[%emt 0:00:13]} Qxg3 {[%emt 0:00:07]} 44. Rxh6+ {[%emt 0:00:02]} Kg8 {[%emt 0:00:02]} 45. Qd5+ {[%emt 0:00:12]} Kf8 {[%emt 0:00:14]} 46. Rh8+ {[%emt 0:00:02]} 1-0

[Event "29th Czech Open-Rapid 2018"]
[Site "Pardubice"]
[Date "2018.07.19"]
[Round "4"]
[White "Rosko, Lubos"]
[Black "Joukl, Zdenek"]
[Result "1/2-1/2"]
[ECO "B07"]
[WhiteElo "2294"]
[BlackElo "2068"]
[Annotator "NA"]
[PlyCount "44"]
[EventDate "2018.07.18"]
[EventType "swiss"]
[EventCountry "CZE"]
[SourceTitle "playchess.com"]
[Source "ChessBase"]
[SourceQuality "1"]
[TimeControl "900+10"]

1. e4 {[%emt 0:05:10]} d6 {[%emt 0:00:00]} 2. d4 {[%emt 0:00:15]} Nf6 {[%emt 0:00:01]} 3. Nc3 {[%emt 0:00:27]} Nbd7 {[%emt 0:00:08]} 4. f4 {[%emt 0:00:14]} c6 {[%emt 0:00:48]} 5. e5 {[%emt 0:00:52] B07: Pirc-Ufimzew-Verteidigung} Nd5 {[%emt 0:00:24]} 6. Nf3 {[%emt 0:00:20]} (6. Nxd5 cxd5 7. Bd3 g6 8. Nf3 Qb6 9. h4 dxe5 10. fxe5 Nb8 11. h5 gxh5 12. Rxh5 Nc6 13. Rxh7 {0-1 (32) Siebrecht,S (2492)-Bauer,C (2627) Switzerland 2014}) 6... Nxc3 {[%emt 0:03:00]} 7. bxc3 {[%emt 0:00:02]} Nb6 {[%emt 0:00:26]} 8. Bd3 {[%emt 0:00:27]} g6 $146 {[%emt 0:01:01]} ({Vorgänger:} 8... Bg4 9. O-O dxe5 10. fxe5 e6 11. Qe1 Bxf3 12. Rxf3 Qd7 {1-0 (27) Lejarre,L (2400)-Burg,B (2108) Cappelle-la-Grande 2011}) 9. O-O {[%emt 0:01:54]} Bg7 {[%emt 0:00:33]} 10. a4 {[%emt 0:00:35]} a5 {[%emt 0:01:08]} 11. exd6 {[%emt 0:00:52]} Qxd6 {[%emt 0:03:17]} 12. Ba3 {[%emt 0:01:04]} Qf6 {[%emt 0:00:56]} 13. Ne5 {[%emt 0:01:16]} O-O {[%emt 0:00:37]} 14. Bc5 {[%emt 0:00:46]} Nd5 {[%emt 0:01:25]} 15. Qd2 {[%emt 0:00:06]} b6 {[%emt 0:00:05]} 16. Ba3 {[%emt 0:00:02]} Bf5 {[%emt 0:00:17]} 17. c4 {[%emt 0:00:49]} Bxd3 {[%emt 0:00:15]} 18. cxd3 {[%emt 0:00:23]} Nc7 {[%emt 0:00:25]} 19. Bb2 {[%emt 0:00:06]} Qd6 {[%emt 0:00:20]} 20. Kh1 {[%emt 0:00:52]} Ne6 {[%emt 0:00:20]} 21. Ba3 {[%emt 0:00:46]} c5 $17 {[%emt 0:01:08]} 22. d5 {[%emt 0:00:18]} Nxf4 1/2-1/2

[Event "29th Czech Open-Rapid 2018"]
[Site "Pardubice"]
[Date "2018.07.19"]
[Round "4"]
[White "Becker, Dirk"]
[Black "Holy, Filip"]
[Result "1-0"]
[ECO "D00"]
[WhiteElo "2288"]
[BlackElo "2042"]
[Annotator "NA"]
[PlyCount "27"]
[EventDate "2018.07.18"]
[EventType "swiss"]
[EventCountry "CZE"]
[SourceTitle "playchess.com"]
[Source "ChessBase"]
[SourceQuality "1"]
[TimeControl "900+10"]

1. d4 {[%emt 0:00:00]} d5 {[%emt 0:00:00]} 2. Bf4 {[%emt 0:00:16]} Nf6 {[%emt 0:00:00]} 3. e3 {[%emt 0:00:07]} c5 {[%emt 0:00:00]} 4. Nc3 {[%emt 0:00:14]} a6 {[%emt 0:03:04]} 5. dxc5 {[%emt 0:00:07]} e6 {[%emt 0:00:55]} 6. Na4 {[%emt 0:00:08]} Nbd7 {[%emt 0:00:54]} 7. b4 {[%emt 0:01:38]} a5 {[%emt 0:00:41]} 8. a3 {[%emt 0:01:12]} axb4 {[%emt 0:05:15]} 9. axb4 {[%emt 0:00:01]} Ne4 {[%emt 0:00:02]} 10. Bb5 {[%emt 0:01:19]} Qf6 {[%emt 0:01:30]} 11. Nf3 {[%emt 0:03:45]} Nc3 {[%emt 0:02:48]} 12. Be5 {[%emt 0:00:12]} Qxe5 {[%emt 0:00:43]} 13. Nxe5 {[%emt 0:00:02]} Nxd1 {[%emt 0:00:02]} 14. Kxd1 1-0

[Event "29th Czech Open-Rapid 2018"]
[Site "Pardubice"]
[Date "2018.07.19"]
[Round "4"]
[White "Freisler, Pavel"]
[Black "Michelle Catherina, P."]
[Result "0-1"]
[ECO "A13"]
[WhiteElo "2237"]
[BlackElo "1970"]
[Annotator "ChessBase"]
[PlyCount "148"]
[EventDate "2018.07.18"]
[EventType "swiss"]
[EventCountry "CZE"]
[SourceTitle "playchess.com"]
[Source "ChessBase"]
[SourceQuality "1"]
[TimeControl "900+10"]

1. Nf3 {[%emt 0:00:00]} d5 {[%emt 0:05:10]} 2. c4 {[%emt 0:00:06]} e6 {[%emt 0:00:13]} 3. g3 {[%emt 0:00:04]} Nf6 {[%emt 0:00:12]} 4. Bg2 {[%emt 0:00:02]} dxc4 {[%emt 0:00:01]} 5. Qa4+ {[%emt 0:00:03]} c6 {[%emt 0:00:06]} 6. Qxc4 {[%emt 0:00:05]} b5 {[%emt 0:00:03]} 7. Qb3 {[%emt 0:01:38]} Bb7 {[%emt 0:00:15]} 8. a4 {[%emt 0:00:20]} a6 {[%emt 0:00:36]} 9. d3 {[%emt 0:00:21]} Nbd7 {[%emt 0:00:27]} 10. Be3 {[%emt 0:00:48]} c5 {[%emt 0:01:43]} 11. axb5 {[%emt 0:00:15]} Bd5 {[%emt 0:00:13]} 12. Qc2 {[%emt 0:00:46]} axb5 {[%emt 0:00:01]} 13. Rxa8 {[%emt 0:00:20]} Qxa8 {[%emt 0:00:06]} 14. O-O {[%emt 0:00:26]} Be7 {[%emt 0:00:26]} 15. Na3 {[%emt 0:02:59]} Bc6 {[%emt 0:00:36]} 16. Bg5 {[%emt 0:01:08]} O-O {[%emt 0:00:44]} 17. Nh4 {[%emt 0:01:10]} Rb8 {[%emt 0:01:13]} 18. Bxc6 {[%emt 0:00:37]} Qxc6 {[%emt 0:00:02]} 19. Nf3 {[%emt 0:00:02]} Qd5 {[%emt 0:00:46]} 20. Rc1 {[%emt 0:00:29]} h6 {[%emt 0:00:36]} 21. Bf4 {[%emt 0:00:32]} e5 {[%emt 0:00:26]} 22. Bd2 {[%emt 0:00:41]} e4 {[%emt 0:00:38]} 23. dxe4 {[%emt 0:00:03]} Nxe4 {[%emt 0:01:17]} 24. Bf4 {[%emt 0:00:10]} Rb7 {[%emt 0:00:09]} 25. Rd1 {[%emt 0:00:17]} Qe6 {[%emt 0:01:52]} 26. Ne5 {[%emt 0:02:19]} Nxf2 {[%emt 0:00:44]} 27. Kxf2 {[%emt 0:00:02]} Nxe5 {[%emt 0:00:02]} 28. Kg2 {[%emt 0:02:12]} Ng6 {[%emt 0:00:17]} 29. Bc1 {[%emt 0:00:57]} c4 {[%emt 0:00:08]} 30. Qd2 {[%emt 0:00:07]} Qc6+ {[%emt 0:00:10]} 31. Qd5 {[%emt 0:00:06]} Qxd5+ {[%emt 0:00:36]} 32. Rxd5 {[%emt 0:00:01]} Bxa3 {[%emt 0:00:09]} 33. bxa3 {[%emt 0:00:01]} Ne7 {[%emt 0:00:18]} 34. Rc5 {[%emt 0:00:03]} Rb6 {[%emt 0:00:10]} 35. Bd2 {[%emt 0:00:08]} Nc6 {[%emt 0:00:11]} 36. Rd5 {[%emt 0:00:12]} Rb7 {[%emt 0:00:12]} 37. Bc3 {[%emt 0:00:14]} Kh7 {[%emt 0:00:08]} 38. Rd6 {[%emt 0:00:06]} Ne7 {[%emt 0:00:09]} 39. g4 {[%emt 0:00:17]} f6 {[%emt 0:00:07]} 40. Kf3 {[%emt 0:00:05]} Ng6 {[%emt 0:00:14]} 41. Rd5 {[%emt 0:00:14]} Ne7 {[%emt 0:00:04]} 42. Rd6 {[%emt 0:00:01]} Ng6 {[%emt 0:00:01]} 43. Rd5 {[%emt 0:00:01]} Ne7 {[%emt 0:00:13]} 44. Rd6 {[%emt 0:00:01]} Kg6 {[%emt 0:00:18]} 45. h4 {[%emt 0:00:03]} Kf7 {[%emt 0:00:08]} 46. h5 {[%emt 0:00:05]} Nc8 {[%emt 0:00:03]} 47. Rc6 {[%emt 0:00:08]} Ne7 {[%emt 0:00:07]} 48. Rd6 {[%emt 0:00:02]} Nc8 {[%emt 0:00:01]} 49. Rc6 {[%emt 0:00:01]} Ne7 {[%emt 0:00:31]} 50. Rd6 {[%emt 0:00:01]} Nc8 {[%emt 0:00:01]} 51. Rc6 {[%emt 0:00:00]} Nb6 {[%emt 0:00:14]} 52. e4 {[%emt 0:00:50]} Na4 {[%emt 0:00:19]} 53. Bd4 {[%emt 0:00:02]} Rd7 {[%emt 0:00:06]} 54. Ke3 {[%emt 0:00:01]} Ke7 {[%emt 0:00:11]} 55. e5 {[%emt 0:00:24]} fxe5 {[%emt 0:00:11]} 56. Bxe5 {[%emt 0:00:01]} Kf7 {[%emt 0:00:13]} 57. Ke4 {[%emt 0:00:09]} Re7 {[%emt 0:00:12]} 58. Kf5 {[%emt 0:00:11]} Rb7 {[%emt 0:00:09]} 59. Bd4 {[%emt 0:00:37]} Rd7 {[%emt 0:00:05]} 60. Be5 {[%emt 0:00:01]} Rb7 {[%emt 0:00:01]} 61. Bd4 {[%emt 0:00:24]} Re7 {[%emt 0:00:05]} 62. Be5 {[%emt 0:00:05]} Rd7 {[%emt 0:00:00]} 63. Rg6 {[%emt 0:00:23]} Kg8 {[%emt 0:00:04]} 64. Rc6 {[%emt 0:00:13]} Kf7 {[%emt 0:00:13]} 65. Rg6 {[%emt 0:00:04]} Kg8 {[%emt 0:00:31]} 66. g5 {[%emt 0:00:15]} hxg5 {[%emt 0:00:14]} 67. h6 {[%emt 0:00:02]} c3 {[%emt 0:00:11]} 68. hxg7 {[%emt 0:00:03]} c2 {[%emt 0:00:16]} 69. Rc6 {[%emt 0:00:02]} Rd8 {[%emt 0:00:09]} 70. Rxc2 {[%emt 0:00:12]} Re8 {[%emt 0:00:08]} 71. Bf6 {[%emt 0:00:17]} Nb6 {[%emt 0:00:09]} 72. Rh2 {[%emt 0:00:11]} Kf7 {[%emt 0:00:06]} 73. Rb2 {[%emt 0:01:12]} Nc4 {[%emt 0:00:07]} 74. Rxb5 {[%emt 0:00:02]} Nd6+ 0-1